[Event "Live Chess"]
[Site "Chess.com"]
[Date "2010.12.13"]
[Round "-"]
[White "hipposcottimus"]
[Black "71santiniF-4"]
[Result "0-1"]
[CurrentPosition "1n3rk1/rbp3p1/pp5p/3P4/2P2n2/8/PP1BB1qP/R2Q1R1K w - -"]
[Timezone "UTC"]
[ECO "B00"]
[ECOUrl "https://www.chess.com/openings/Owens-Defense-2.d4-Bb7-3.Bd3"]
[UTCDate "2010.12.13"]
[UTCTime "01:21:58"]
[WhiteElo "1596"]
[BlackElo "1435"]
[TimeControl "60"]
[Termination "71santiniF-4 won by checkmate"]
[StartTime "01:21:58"]
[EndDate "2010.12.13"]
[EndTime "01:23:36"]
[Link "https://www.chess.com/game/live/76728150"]

1. e4 {[%clk 0:01:00]} 1... b6 {[%clk 0:01:00]} 2. d4 {[%clk 0:00:57.5]} 2... Bb7 {[%clk 0:00:59.5]} 3. Bd3 {[%clk 0:00:55.1]} 3... a6 {[%clk 0:00:58.8]} 4. c4 {[%clk 0:00:54.8]} 4... Ra7 {[%clk 0:00:58]} 5. Nc3 {[%clk 0:00:53.9]} 5... e6 {[%clk 0:00:57.4]} 6. Nf3 {[%clk 0:00:53.3]} 6... h6 {[%clk 0:00:56.8]} 7. d5 {[%clk 0:00:51.6]} 7... Bb4 {[%clk 0:00:55.7]} 8. Bd2 {[%clk 0:00:46.8]} 8... Bxc3 {[%clk 0:00:54.5]} 9. Bxc3 {[%clk 0:00:46.5]} 9... f6 {[%clk 0:00:52.9]} 10. Bc2 {[%clk 0:00:42.2]} 10... e5 {[%clk 0:00:51.4]} 11. Nxe5 {[%clk 0:00:35.2]} 11... fxe5 {[%clk 0:00:49.4]} 12. Bxe5 {[%clk 0:00:34.3]} 12... Nf6 {[%clk 0:00:46.6]} 13. Bc3 {[%clk 0:00:28.5]} 13... d6 {[%clk 0:00:45.6]} 14. e5 {[%clk 0:00:27.1]} 14... dxe5 {[%clk 0:00:43.9]} 15. Bxe5 {[%clk 0:00:25.8]} 15... O-O {[%clk 0:00:42.3]} 16. O-O {[%clk 0:00:21.2]} 16... Nh5 {[%clk 0:00:39.1]} 17. Bc3 {[%clk 0:00:20.7]} 17... Qe8 {[%clk 0:00:36.9]} 18. Re1 {[%clk 0:00:17.8]} 18... Qf7 {[%clk 0:00:36]} 19. Bd3 {[%clk 0:00:16.9]} 19... Qxf2+ {[%clk 0:00:34]} 20. Kh1 {[%clk 0:00:16.7]} 20... Qf7 {[%clk 0:00:29.7]} 21. Be2 {[%clk 0:00:16.1]} 21... Nf4 {[%clk 0:00:27.4]} 22. Rf1 {[%clk 0:00:12.8]} 22... Qg6 {[%clk 0:00:24]} 23. Bd2 {[%clk 0:00:11.3]} 23... Qxg2# {[%clk 0:00:22.5]} 0-1

[Event "Live Chess"]
[Site "Chess.com"]
[Date "2010.12.13"]
[Round "-"]
[White "omarmuyot01"]
[Black "hipposcottimus"]
[Result "1-0"]
[CurrentPosition "2krr3/p1Qn1ppp/1p6/3q4/8/1N6/PP3bPP/1RR2K2 b - -"]
[Timezone "UTC"]
[ECO "C58"]
[ECOUrl "https://www.chess.com/openings/Italian-Game-Knight-Attack-Polerio-Bishop-Check-Line-6...Bd7"]
[UTCDate "2010.12.13"]
[UTCTime "01:13:16"]
[WhiteElo "1599"]
[BlackElo "1607"]
[TimeControl "60"]
[Termination "omarmuyot01 won by checkmate"]
[StartTime "01:13:16"]
[EndDate "2010.12.13"]
[EndTime "01:15:09"]
[Link "https://www.chess.com/game/live/76726245"]

1. e4 {[%clk 0:01:00]} 1... e5 {[%clk 0:01:00]} 2. Nf3 {[%clk 0:00:59.3]} 2... Nc6 {[%clk 0:00:59.7]} 3. Bc4 {[%clk 0:00:58.2]} 3... Nf6 {[%clk 0:00:59.1]} 4. Ng5 {[%clk 0:00:56.8]} 4... d5 {[%clk 0:00:58.8]} 5. exd5 {[%clk 0:00:55.8]} 5... Na5 {[%clk 0:00:58.4]} 6. Bb5+ {[%clk 0:00:52.9]} 6... Bd7 {[%clk 0:00:57.3]} 7. Bxd7+ {[%clk 0:00:51.3]} 7... Nxd7 {[%clk 0:00:56.9]} 8. Qf3 {[%clk 0:00:49.3]} 8... Qxg5 {[%clk 0:00:55.1]} 9. d4 {[%clk 0:00:44.6]} 9... Qxc1+ {[%clk 0:00:53.8]} 10. Ke2 {[%clk 0:00:39.5]} 10... Qxc2+ {[%clk 0:00:51.6]} 11. Nd2 {[%clk 0:00:37]} 11... O-O-O {[%clk 0:00:44.2]} 12. Rab1 {[%clk 0:00:32.1]} 12... exd4 {[%clk 0:00:41.7]} 13. Rhc1 {[%clk 0:00:29.2]} 13... Qg6 {[%clk 0:00:37.1]} 14. Qf4 {[%clk 0:00:17.1]} 14... Bd6 {[%clk 0:00:35.1]} 15. Qxd4 {[%clk 0:00:15.5]} 15... Rhe8+ {[%clk 0:00:34.4]} 16. Kf1 {[%clk 0:00:13]} 16... Bc5 {[%clk 0:00:34.1]} 17. Qc3 {[%clk 0:00:11]} 17... b6 {[%clk 0:00:28.8]} 18. Nb3 {[%clk 0:00:09.2]} 18... Qd6 {[%clk 0:00:24.5]} 19. Nxa5 {[%clk 0:00:07.1]} 19... Qxd5 {[%clk 0:00:21.8]} 20. Nb3 {[%clk 0:00:02.9]} 20... Bxf2 {[%clk 0:00:17]} 21. Qxc7# {[%clk 0:00:00.4]} 1-0

[Event "Live Chess"]
[Site "Chess.com"]
[Date "2010.12.13"]
[Round "-"]
[White "hipposcottimus"]
[Black "omarmuyot01"]
[Result "0-1"]
[CurrentPosition "1r2kb1r/p3pppp/2p5/1B6/3nN1n1/4Q2N/PPb2PPq/R1B2RK1 w k -"]
[Timezone "UTC"]
[ECO "B01"]
[ECOUrl "https://www.chess.com/openings/Scandinavian-Defense-Mieses-Kotrc-Variation-3.Nc3"]
[UTCDate "2010.12.13"]
[UTCTime "01:12:01"]
[WhiteElo "1616"]
[BlackElo "1590"]
[TimeControl "60"]
[Termination "omarmuyot01 won by checkmate"]
[StartTime "01:12:01"]
[EndDate "2010.12.13"]
[EndTime "01:13:07"]
[Link "https://www.chess.com/game/live/76725937"]

1. e4 {[%clk 0:01:00]} 1... d5 {[%clk 0:01:00]} 2. exd5 {[%clk 0:00:58.6]} 2... Qxd5 {[%clk 0:00:59.4]} 3. Nc3 {[%clk 0:00:58.3]} 3... Qe6+ {[%clk 0:00:58.8]} 4. Be2 {[%clk 0:00:57.6]} 4... Qg6 {[%clk 0:00:58.1]} 5. Bf3 {[%clk 0:00:57]} 5... Bf5 {[%clk 0:00:57.1]} 6. d4 {[%clk 0:00:56]} 6... Bxc2 {[%clk 0:00:55.5]} 7. Qe2 {[%clk 0:00:55.7]} 7... Nc6 {[%clk 0:00:53.6]} 8. Nh3 {[%clk 0:00:54.8]} 8... Nxd4 {[%clk 0:00:52.2]} 9. Qe3 {[%clk 0:00:46.2]} 9... Qd6 {[%clk 0:00:49.7]} 10. O-O {[%clk 0:00:43.4]} 10... Nf6 {[%clk 0:00:44.6]} 11. Bxb7 {[%clk 0:00:42.9]} 11... Rb8 {[%clk 0:00:43.2]} 12. Ba6 {[%clk 0:00:32.3]} 12... Ng4 {[%clk 0:00:41.3]} 13. Bb5+ {[%clk 0:00:29.3]} 13... c6 {[%clk 0:00:38.2]} 14. Ne4 {[%clk 0:00:24.8]} 14... Qxh2# {[%clk 0:00:36.2]} 0-1

[Event "Live Chess"]
[Site "Chess.com"]
[Date "2010.12.13"]
[Round "-"]
[White "hipposcottimus"]
[Black "Dyikanakylbek"]
[Result "1-0"]
[CurrentPosition "5r2/pp3pk1/2p4R/3p4/6Q1/8/P3NKP1/1q2r3 b - -"]
[Timezone "UTC"]
[ECO "C41"]
[ECOUrl "https://www.chess.com/openings/Philidor-Defense-3.d4-Bg4"]
[UTCDate "2010.12.13"]
[UTCTime "01:09:19"]
[WhiteElo "1625"]
[BlackElo "1543"]
[TimeControl "60"]
[Termination "hipposcottimus won on time"]
[StartTime "01:09:19"]
[EndDate "2010.12.13"]
[EndTime "01:11:34"]
[Link "https://www.chess.com/game/live/76725304"]

1. e4 {[%clk 0:01:00]} 1... e5 {[%clk 0:01:00]} 2. Nf3 {[%clk 0:00:59.6]} 2... d6 {[%clk 0:00:59.4]} 3. d4 {[%clk 0:00:59.1]} 3... Bg4 {[%clk 0:00:57.7]} 4. Qd3 {[%clk 0:00:58.7]} 4... Bxf3 {[%clk 0:00:56.7]} 5. Qxf3 {[%clk 0:00:58.4]} 5... exd4 {[%clk 0:00:56.1]} 6. Bd3 {[%clk 0:00:57.4]} 6... Nf6 {[%clk 0:00:54.6]} 7. c3 {[%clk 0:00:57]} 7... dxc3 {[%clk 0:00:52.8]} 8. Nxc3 {[%clk 0:00:56.8]} 8... Be7 {[%clk 0:00:51.8]} 9. O-O {[%clk 0:00:56.4]} 9... O-O {[%clk 0:00:50.9]} 10. Bf4 {[%clk 0:00:55.9]} 10... Nc6 {[%clk 0:00:47.6]} 11. Bc2 {[%clk 0:00:55.6]} 11... Nd4 {[%clk 0:00:46.4]} 12. Qd3 {[%clk 0:00:52.4]} 12... Nxc2 {[%clk 0:00:45.3]} 13. Qxc2 {[%clk 0:00:52.2]} 13... c6 {[%clk 0:00:42.4]} 14. Rfe1 {[%clk 0:00:49.6]} 14... Qd7 {[%clk 0:00:41.6]} 15. Rad1 {[%clk 0:00:47.4]} 15... Qg4 {[%clk 0:00:39.4]} 16. Bg3 {[%clk 0:00:45.1]} 16... Nh5 {[%clk 0:00:37.2]} 17. f3 {[%clk 0:00:44.4]} 17... Qg6 {[%clk 0:00:35.2]} 18. f4 {[%clk 0:00:39]} 18... Nxg3 {[%clk 0:00:33.8]} 19. hxg3 {[%clk 0:00:38]} 19... Qxg3 {[%clk 0:00:32.2]} 20. Rd3 {[%clk 0:00:36.7]} 20... Qg4 {[%clk 0:00:30.7]} 21. Rh3 {[%clk 0:00:36.3]} 21... Qxf4 {[%clk 0:00:29]} 22. Ree3 {[%clk 0:00:34.9]} 22... Bg5 {[%clk 0:00:26.5]} 23. Ref3 {[%clk 0:00:34.5]} 23... Qe5 {[%clk 0:00:24]} 24. Rhg3 {[%clk 0:00:32.7]} 24... h6 {[%clk 0:00:22.6]} 25. Rf5 {[%clk 0:00:31.8]} 25... Qe7 {[%clk 0:00:20.6]} 26. Rff3 {[%clk 0:00:30.4]} 26... Bh4 {[%clk 0:00:19.8]} 27. Rh3 {[%clk 0:00:29.5]} 27... Rae8 {[%clk 0:00:17.4]} 28. Rf4 {[%clk 0:00:28.6]} 28... Bg5 {[%clk 0:00:15.6]} 29. Rg4 {[%clk 0:00:27.4]} 29... Qf6 {[%clk 0:00:13.8]} 30. Qe2 {[%clk 0:00:24.8]} 30... d5 {[%clk 0:00:12.9]} 31. e5 {[%clk 0:00:23.6]} 31... Rxe5 {[%clk 0:00:11.8]} 32. Qf3 {[%clk 0:00:19.6]} 32... Re1+ {[%clk 0:00:09.6]} 33. Kf2 {[%clk 0:00:18.5]} 33... Qe5 {[%clk 0:00:07.8]} 34. Ne2 {[%clk 0:00:12.3]} 34... Be3+ {[%clk 0:00:06.7]} 35. Qxe3 {[%clk 0:00:09.5]} 35... Qf6+ {[%clk 0:00:05.8]} 36. Qf3 {[%clk 0:00:08.4]} 36... Qxb2 {[%clk 0:00:04.6]} 37. Rxh6 {[%clk 0:00:06.5]} 37... Qb1 {[%clk 0:00:03.8]} 38. Rxg7+ {[%clk 0:00:05.7]} 38... Kxg7 {[%clk 0:00:00.2]} 39. Qg4+ {[%clk 0:00:04.6]} 1-0

[Event "Live Chess"]
[Site "Chess.com"]
[Date "2010.12.13"]
[Round "-"]
[White "Dyikanakylbek"]
[Black "hipposcottimus"]
[Result "0-1"]
[CurrentPosition "r7/pp6/7p/2p3k1/3n2B1/P2P3P/1P4P1/5RK1 w - -"]
[Timezone "UTC"]
[ECO "C20"]
[ECOUrl "https://www.chess.com/openings/Kings-Pawn-Opening-Leonardis-Variation-2...Nf6"]
[UTCDate "2010.12.13"]
[UTCTime "01:07:13"]
[WhiteElo "1549"]
[BlackElo "1619"]
[TimeControl "60"]
[Termination "hipposcottimus won on time"]
[StartTime "01:07:13"]
[EndDate "2010.12.13"]
[EndTime "01:09:09"]
[Link "https://www.chess.com/game/live/76724788"]

1. e4 {[%clk 0:01:00]} 1... e5 {[%clk 0:01:00]} 2. d3 {[%clk 0:00:59.3]} 2... Nf6 {[%clk 0:00:57.8]} 3. c4 {[%clk 0:00:58.7]} 3... c5 {[%clk 0:00:56.3]} 4. Nc3 {[%clk 0:00:58.2]} 4... d6 {[%clk 0:00:55.8]} 5. Nf3 {[%clk 0:00:57.2]} 5... Nc6 {[%clk 0:00:55.5]} 6. Be2 {[%clk 0:00:54.6]} 6... Be7 {[%clk 0:00:55.2]} 7. h3 {[%clk 0:00:53.8]} 7... O-O {[%clk 0:00:54.7]} 8. a3 {[%clk 0:00:52.9]} 8... Nd7 {[%clk 0:00:54.5]} 9. Bd2 {[%clk 0:00:52]} 9... f5 {[%clk 0:00:54.3]} 10. exf5 {[%clk 0:00:50.1]} 10... Nf6 {[%clk 0:00:54]} 11. Nh2 {[%clk 0:00:44.8]} 11... Bxf5 {[%clk 0:00:53.3]} 12. O-O {[%clk 0:00:42.9]} 12... Bg6 {[%clk 0:00:53]} 13. Ng4 {[%clk 0:00:41.1]} 13... Bf7 {[%clk 0:00:52.7]} 14. Nxf6+ {[%clk 0:00:40]} 14... Bxf6 {[%clk 0:00:51.9]} 15. Bf3 {[%clk 0:00:36.1]} 15... d5 {[%clk 0:00:51.6]} 16. cxd5 {[%clk 0:00:34.2]} 16... Ne7 {[%clk 0:00:48.7]} 17. Be4 {[%clk 0:00:31.2]} 17... Bxd5 {[%clk 0:00:47.4]} 18. Nxd5 {[%clk 0:00:28.1]} 18... Nxd5 {[%clk 0:00:46.7]} 19. Qh5 {[%clk 0:00:26.2]} 19... h6 {[%clk 0:00:40.9]} 20. Qg4 {[%clk 0:00:25.2]} 20... Ne7 {[%clk 0:00:39]} 21. Bxh6 {[%clk 0:00:22.7]} 21... Rf7 {[%clk 0:00:31.3]} 22. Qe6 {[%clk 0:00:19.2]} 22... Nc6 {[%clk 0:00:30.4]} 23. Bd5 {[%clk 0:00:17.6]} 23... Qe7 {[%clk 0:00:24.2]} 24. f4 {[%clk 0:00:11.4]} 24... Qxe6 {[%clk 0:00:23.2]} 25. Bxe6 {[%clk 0:00:09.8]} 25... gxh6 {[%clk 0:00:22.5]} 26. fxe5 {[%clk 0:00:08.7]} 26... Kg7 {[%clk 0:00:20.3]} 27. Rxf6 {[%clk 0:00:06.3]} 27... Rxf6 {[%clk 0:00:19.1]} 28. exf6+ {[%clk 0:00:05.7]} 28... Kxf6 {[%clk 0:00:18.8]} 29. Bg4 {[%clk 0:00:04.5]} 29... Nd4 {[%clk 0:00:18.4]} 30. Rf1+ {[%clk 0:00:02.5]} 30... Kg5 {[%clk 0:00:16.7]} 0-1

[Event "Live Chess"]
[Site "Chess.com"]
[Date "2010.12.13"]
[Round "-"]
[White "hipposcottimus"]
[Black "Dyikanakylbek"]
[Result "1-0"]
[CurrentPosition "3q2k1/ppp5/8/8/3n4/3Q3P/PP3PP1/5RK1 b - -"]
[Timezone "UTC"]
[ECO "C41"]
[ECOUrl "https://www.chess.com/openings/Philidor-Defense-3.Bc4"]
[UTCDate "2010.12.13"]
[UTCTime "01:05:06"]
[WhiteElo "1612"]
[BlackElo "1556"]
[TimeControl "60"]
[Termination "hipposcottimus won on time"]
[StartTime "01:05:06"]
[EndDate "2010.12.13"]
[EndTime "01:07:03"]
[Link "https://www.chess.com/game/live/76724349"]

1. e4 {[%clk 0:01:00]} 1... e5 {[%clk 0:01:00]} 2. Nf3 {[%clk 0:00:59.6]} 2... d6 {[%clk 0:00:59.4]} 3. Bc4 {[%clk 0:00:59.4]} 3... h6 {[%clk 0:00:58.8]} 4. d3 {[%clk 0:00:58.9]} 4... Nf6 {[%clk 0:00:58.2]} 5. d4 {[%clk 0:00:58.6]} 5... exd4 {[%clk 0:00:56]} 6. e5 {[%clk 0:00:58.1]} 6... dxe5 {[%clk 0:00:54.5]} 7. Nxe5 {[%clk 0:00:57.8]} 7... Be7 {[%clk 0:00:52.9]} 8. Nd3 {[%clk 0:00:57.5]} 8... O-O {[%clk 0:00:51.8]} 9. O-O {[%clk 0:00:56.1]} 9... Nc6 {[%clk 0:00:50.7]} 10. c3 {[%clk 0:00:55.9]} 10... dxc3 {[%clk 0:00:48.7]} 11. Nxc3 {[%clk 0:00:53.5]} 11... Bf5 {[%clk 0:00:45.6]} 12. Qf3 {[%clk 0:00:52.1]} 12... Bxd3 {[%clk 0:00:42.9]} 13. Bxd3 {[%clk 0:00:51.9]} 13... Qe8 {[%clk 0:00:41.4]} 14. Qg3 {[%clk 0:00:51.2]} 14... Rd8 {[%clk 0:00:37.9]} 15. Bxh6 {[%clk 0:00:49.4]} 15... g6 {[%clk 0:00:35.8]} 16. Bxf8 {[%clk 0:00:47.5]} 16... Qxf8 {[%clk 0:00:35.2]} 17. Bxg6 {[%clk 0:00:46.2]} 17... fxg6 {[%clk 0:00:33.2]} 18. Qxg6+ {[%clk 0:00:45.9]} 18... Qg7 {[%clk 0:00:32.6]} 19. Qf5 {[%clk 0:00:42.5]} 19... Bd6 {[%clk 0:00:30.3]} 20. Rad1 {[%clk 0:00:40.6]} 20... Qh7 {[%clk 0:00:26.5]} 21. Qg5+ {[%clk 0:00:33.6]} 21... Kh8 {[%clk 0:00:20.9]} 22. h3 {[%clk 0:00:33.2]} 22... Nh5 {[%clk 0:00:16.5]} 23. Nd5 {[%clk 0:00:23]} 23... Be7 {[%clk 0:00:13.6]} 24. Nxe7 {[%clk 0:00:21.5]} 24... Qxe7 {[%clk 0:00:08.7]} 25. Rxd8+ {[%clk 0:00:20.1]} 25... Qxd8 {[%clk 0:00:05.5]} 26. Qxh5+ {[%clk 0:00:19]} 26... Kg8 {[%clk 0:00:04.2]} 27. Qf3 {[%clk 0:00:18.3]} 27... Nd4 {[%clk 0:00:02.1]} 28. Qd3 {[%clk 0:00:15.6]} 1-0

[Event "Live Chess"]
[Site "Chess.com"]
[Date "2010.12.13"]
[Round "-"]
[White "hipposcottimus"]
[Black "frankjiang1"]
[Result "0-1"]
[CurrentPosition "r7/pp4k1/4B1p1/4p3/8/P3n2R/6qP/7K w - -"]
[Timezone "UTC"]
[ECO "B00"]
[ECOUrl "https://www.chess.com/openings/Nimzowitsch-Defense-Declined-2...Nf6"]
[UTCDate "2010.12.13"]
[UTCTime "01:02:42"]
[WhiteElo "1605"]
[BlackElo "1422"]
[TimeControl "60"]
[Termination "frankjiang1 won by checkmate"]
[StartTime "01:02:42"]
[EndDate "2010.12.13"]
[EndTime "01:04:24"]
[Link "https://www.chess.com/game/live/76723813"]

1. e4 {[%clk 0:01:00]} 1... Nc6 {[%clk 0:01:00]} 2. Nf3 {[%clk 0:00:59.7]} 2... Nf6 {[%clk 0:00:59.1]} 3. d3 {[%clk 0:00:58.4]} 3... e5 {[%clk 0:00:58]} 4. Nc3 {[%clk 0:00:56.5]} 4... Bc5 {[%clk 0:00:57]} 5. Be3 {[%clk 0:00:55.7]} 5... Bxe3 {[%clk 0:00:56]} 6. fxe3 {[%clk 0:00:55.3]} 6... Qe7 {[%clk 0:00:55.5]} 7. Be2 {[%clk 0:00:54.9]} 7... Qb4 {[%clk 0:00:54]} 8. O-O {[%clk 0:00:54.6]} 8... Qxb2 {[%clk 0:00:51.2]} 9. a3 {[%clk 0:00:54.3]} 9... Qxc3 {[%clk 0:00:50.1]} 10. d4 {[%clk 0:00:51]} 10... Qa5 {[%clk 0:00:47.9]} 11. d5 {[%clk 0:00:49.6]} 11... Ne7 {[%clk 0:00:46]} 12. Nxe5 {[%clk 0:00:48.1]} 12... d6 {[%clk 0:00:44.9]} 13. Bc4 {[%clk 0:00:47.2]} 13... dxe5 {[%clk 0:00:43.8]} 14. Ba2 {[%clk 0:00:45.5]} 14... c6 {[%clk 0:00:40.1]} 15. Qf3 {[%clk 0:00:45.1]} 15... cxd5 {[%clk 0:00:39.1]} 16. exd5 {[%clk 0:00:44.8]} 16... Nexd5 {[%clk 0:00:38.1]} 17. e4 {[%clk 0:00:44.4]} 17... Nc3 {[%clk 0:00:36.6]} 18. Bb3 {[%clk 0:00:42.6]} 18... Nb5 {[%clk 0:00:34.5]} 19. Qf5 {[%clk 0:00:40.5]} 19... Bxf5 {[%clk 0:00:32.6]} 20. exf5 {[%clk 0:00:39.6]} 20... g6 {[%clk 0:00:32.1]} 21. fxg6 {[%clk 0:00:38.3]} 21... hxg6 {[%clk 0:00:31.4]} 22. Rxf6 {[%clk 0:00:36.7]} 22... O-O {[%clk 0:00:30.3]} 23. Raf1 {[%clk 0:00:33.1]} 23... Nd4 {[%clk 0:00:29]} 24. Ba2 {[%clk 0:00:32]} 24... Nxc2 {[%clk 0:00:27.5]} 25. Rxf7 {[%clk 0:00:30.3]} 25... Rxf7 {[%clk 0:00:26.1]} 26. Bxf7+ {[%clk 0:00:30]} 26... Kg7 {[%clk 0:00:24.7]} 27. Ba2 {[%clk 0:00:29.8]} 27... Qb6+ {[%clk 0:00:22.2]} 28. Kh1 {[%clk 0:00:27.5]} 28... Ne3 {[%clk 0:00:20.9]} 29. Rf7+ {[%clk 0:00:26.3]} 29... Kh6 {[%clk 0:00:20.2]} 30. Rf3 {[%clk 0:00:22.9]} 30... Qb2 {[%clk 0:00:16.6]} 31. Rh3+ {[%clk 0:00:22.5]} 31... Kg7 {[%clk 0:00:13.7]} 32. Be6 {[%clk 0:00:22]} 32... Qxg2# {[%clk 0:00:12]} 0-1

[Event "Live Chess"]
[Site "Chess.com"]
[Date "2010.12.12"]
[Round "-"]
[White "xdianto_w"]
[Black "hipposcottimus"]
[Result "0-1"]
[CurrentPosition "5r1k/p1Q3pp/5n2/8/P1b5/2P5/6PP/4R2K w - -"]
[Timezone "UTC"]
[ECO "D00"]
[ECOUrl "https://www.chess.com/openings/Queens-Pawn-Opening-Accelerated-London-System-2...c6-3.e3"]
[UTCDate "2010.12.12"]
[UTCTime "06:14:18"]
[WhiteElo "1275"]
[BlackElo "1616"]
[TimeControl "60"]
[Termination "hipposcottimus won on time"]
[StartTime "06:14:18"]
[EndDate "2010.12.12"]
[EndTime "06:16:06"]
[Link "https://www.chess.com/game/live/76461892"]

1. d4 {[%clk 0:01:00]} 1... d5 {[%clk 0:01:00]} 2. Bf4 {[%clk 0:00:59.6]} 2... c6 {[%clk 0:00:59.7]} 3. e3 {[%clk 0:00:59]} 3... Nd7 {[%clk 0:00:59.4]} 4. a4 {[%clk 0:00:58]} 4... f6 {[%clk 0:00:59]} 5. Nd2 {[%clk 0:00:56.7]} 5... e5 {[%clk 0:00:58.7]} 6. dxe5 {[%clk 0:00:55.5]} 6... fxe5 {[%clk 0:00:58.3]} 7. Bg3 {[%clk 0:00:52.3]} 7... Ngf6 {[%clk 0:00:57.9]} 8. Ngf3 {[%clk 0:00:46.4]} 8... Bb4 {[%clk 0:00:57.5]} 9. Nxe5 {[%clk 0:00:44.6]} 9... O-O {[%clk 0:00:56.1]} 10. c3 {[%clk 0:00:40.1]} 10... Bd6 {[%clk 0:00:45.7]} 11. Nxd7 {[%clk 0:00:35.5]} 11... Qxd7 {[%clk 0:00:45.3]} 12. Bxd6 {[%clk 0:00:33.4]} 12... Qxd6 {[%clk 0:00:45]} 13. Bd3 {[%clk 0:00:32.9]} 13... Bg4 {[%clk 0:00:44.7]} 14. f3 {[%clk 0:00:29]} 14... Bh5 {[%clk 0:00:44.2]} 15. O-O {[%clk 0:00:28.3]} 15... c5 {[%clk 0:00:39.6]} 16. Qb3 {[%clk 0:00:24.9]} 16... c4 {[%clk 0:00:38.8]} 17. Nxc4 {[%clk 0:00:24.5]} 17... dxc4 {[%clk 0:00:37.1]} 18. Bxc4+ {[%clk 0:00:24.1]} 18... Kh8 {[%clk 0:00:35]} 19. Qxb7 {[%clk 0:00:23.7]} 19... Qc5 {[%clk 0:00:33.7]} 20. Be6 {[%clk 0:00:17.8]} 20... Qxe3+ {[%clk 0:00:33]} 21. Kh1 {[%clk 0:00:15]} 21... Rab8 {[%clk 0:00:32.7]} 22. Qc7 {[%clk 0:00:10.9]} 22... Rxb2 {[%clk 0:00:29.8]} 23. Rae1 {[%clk 0:00:10.5]} 23... Re2 {[%clk 0:00:26.5]} 24. Rxe2 {[%clk 0:00:07.3]} 24... Qxe2 {[%clk 0:00:26.2]} 25. Bc4 {[%clk 0:00:07]} 25... Bxf3 {[%clk 0:00:25.9]} 26. Bxe2 {[%clk 0:00:04.2]} 26... Bxe2 {[%clk 0:00:25.6]} 27. Re1 {[%clk 0:00:00.4]} 27... Bc4 {[%clk 0:00:25.2]} 0-1

[Event "Live Chess"]
[Site "Chess.com"]
[Date "2010.12.12"]
[Round "-"]
[White "hipposcottimus"]
[Black "beyah1176"]
[Result "0-1"]
[CurrentPosition "7b/3kn3/pPbPp2p/4P3/PK3P2/8/r2q3P/8 w - -"]
[Timezone "UTC"]
[ECO "B00"]
[ECOUrl "https://www.chess.com/openings/Kings-Pawn-Opening-Barnes-Defense-2.d4"]
[UTCDate "2010.12.12"]
[UTCTime "06:05:26"]
[WhiteElo "1614"]
[BlackElo "1359"]
[TimeControl "60"]
[Termination "beyah1176 won on time"]
[StartTime "06:05:26"]
[EndDate "2010.12.12"]
[EndTime "06:07:46"]
[Link "https://www.chess.com/game/live/76460387"]

1. e4 {[%clk 0:01:00]} 1... f6 {[%clk 0:01:00]} 2. d4 {[%clk 0:00:58.3]} 2... g6 {[%clk 0:01:00]} 3. e5 {[%clk 0:00:57.6]} 3... Bg7 {[%clk 0:01:00]} 4. f4 {[%clk 0:00:55.6]} 4... e6 {[%clk 0:01:00]} 5. Nc3 {[%clk 0:00:52.5]} 5... f5 {[%clk 0:00:56.5]} 6. Be2 {[%clk 0:00:50.3]} 6... a6 {[%clk 0:00:56.5]} 7. Bd2 {[%clk 0:00:49.6]} 7... h6 {[%clk 0:00:56.5]} 8. Bf3 {[%clk 0:00:48.2]} 8... Ne7 {[%clk 0:00:56.5]} 9. Qe2 {[%clk 0:00:45.5]} 9... Nbc6 {[%clk 0:00:54.7]} 10. g4 {[%clk 0:00:44.8]} 10... b6 {[%clk 0:00:52.8]} 11. gxf5 {[%clk 0:00:43.1]} 11... gxf5 {[%clk 0:00:52.8]} 12. Be3 {[%clk 0:00:42.6]} 12... Bb7 {[%clk 0:00:52]} 13. O-O-O {[%clk 0:00:41.9]} 13... Qc8 {[%clk 0:00:50.9]} 14. Bh5+ {[%clk 0:00:41]} 14... Kd8 {[%clk 0:00:48]} 15. Qg2 {[%clk 0:00:40.7]} 15... Rg8 {[%clk 0:00:45.5]} 16. Nh3 {[%clk 0:00:36.3]} 16... Na5 {[%clk 0:00:42.7]} 17. Rhg1 {[%clk 0:00:34.5]} 17... c6 {[%clk 0:00:36.9]} 18. Qf3 {[%clk 0:00:34.1]} 18... Kc7 {[%clk 0:00:34.3]} 19. Bg6 {[%clk 0:00:31.2]} 19... c5 {[%clk 0:00:32.8]} 20. Bxf5 {[%clk 0:00:29.7]} 20... Bxf3 {[%clk 0:00:30]} 21. Rdf1 {[%clk 0:00:28.2]} 21... Bc6 {[%clk 0:00:26.3]} 22. Bxe6 {[%clk 0:00:27]} 22... dxe6 {[%clk 0:00:23.8]} 23. d5 {[%clk 0:00:26.7]} 23... Nc4 {[%clk 0:00:23.8]} 24. Rd1 {[%clk 0:00:26.5]} 24... Nxe3 {[%clk 0:00:21.4]} 25. d6+ {[%clk 0:00:24.1]} 25... Kd7 {[%clk 0:00:18.6]} 26. Rd3 {[%clk 0:00:23.8]} 26... N3f5 {[%clk 0:00:14.8]} 27. Rdg3 {[%clk 0:00:23.5]} 27... Nxg3 {[%clk 0:00:13]} 28. Rxg3 {[%clk 0:00:23.2]} 28... Bh8 {[%clk 0:00:10.5]} 29. Rd3 {[%clk 0:00:23]} 29... Rg6 {[%clk 0:00:08.2]} 30. Rd1 {[%clk 0:00:22.7]} 30... Rg2 {[%clk 0:00:06.7]} 31. Nf2 {[%clk 0:00:22.4]} 31... Rxf2 {[%clk 0:00:05.4]} 32. Re1 {[%clk 0:00:20.2]} 32... Qg8 {[%clk 0:00:05.4]} 33. Nd1 {[%clk 0:00:19.9]} 33... Qg2 {[%clk 0:00:05.4]} 34. Nxf2 {[%clk 0:00:19.1]} 34... Qxf2 {[%clk 0:00:05.4]} 35. Rd1 {[%clk 0:00:18.8]} 35... Rg8 {[%clk 0:00:05.4]} 36. b3 {[%clk 0:00:18.4]} 36... Rg1 {[%clk 0:00:05.4]} 37. Kb2 {[%clk 0:00:18.1]} 37... Rxd1 {[%clk 0:00:03.9]} 38. a3 {[%clk 0:00:17.2]} 38... Qf1 {[%clk 0:00:03.9]} 39. Kc3 {[%clk 0:00:16.4]} 39... Rb1 {[%clk 0:00:03.9]} 40. b4 {[%clk 0:00:14.4]} 40... Qe1+ {[%clk 0:00:03.9]} 41. Kc4 {[%clk 0:00:12.2]} 41... Rc1 {[%clk 0:00:03.9]} 42. bxc5 {[%clk 0:00:08.3]} 42... Rxc2+ {[%clk 0:00:03.9]} 43. Kb3 {[%clk 0:00:08]} 43... Qd2 {[%clk 0:00:03.9]} 44. cxb6 {[%clk 0:00:06.7]} 44... Ra2 {[%clk 0:00:03.9]} 45. a4 {[%clk 0:00:02.6]} 45... Qb2+ {[%clk 0:00:03.9]} 46. Kc4 {[%clk 0:00:01.5]} 46... Qc2+ {[%clk 0:00:03.9]} 47. Kb4 {[%clk 0:00:00.5]} 47... Qd2+ {[%clk 0:00:03.9]} 0-1